[Event "Skol-SM i Schack 2024, Grupp A"]
[Site "Arena Varberg, Kattegattsvagen 26, Varberg, Sweden"]
[Date "2024.10.12"]
[Round "6.3"]
[White "Fridman, Arvid"]
[Black "Harlin, Jacob"]
[Result "1-0"]
[TimeControl "45 minutes + 10 seconds per move from move one."]
[WhiteFideId "1758632"]
[BlackFideId "1728180"]
[WhiteElo "1895"]
[BlackElo "1919"]

1. d4 {[%clk 00:45:03]} {[%emt 00:00:13]} d5 {[%clk 00:45:13]} {[%emt
00:00:08]} 2. c4 {[%clk 00:44:59]} {[%emt 00:00:14]} c6 {[%clk 00:45:18]}
{[%emt 00:00:05]} 3. Nc3 {[%clk 00:44:37]} {[%emt 00:00:31]} Nf6 {[%clk
00:45:25]} {[%emt 00:00:04]} 4. Nf3 {[%clk 00:44:40]} {[%emt 00:00:07]} dxc4
{[%clk 00:45:17]} {[%emt 00:00:18]} 5. a4 {[%clk 00:43:33]} {[%emt 00:01:16]}
Bf5 {[%clk 00:45:24]} {[%emt 00:00:02]} 6. e3 {[%clk 00:43:25]} {[%emt
00:00:18]} e6 {[%clk 00:44:09]} {[%emt 00:01:26]} 7. Bxc4 {[%clk 00:42:46]}
{[%emt 00:00:48]} Bb4 {[%clk 00:43:21]} {[%emt 00:00:59]} 8. O-O {[%clk
00:41:33]} {[%emt 00:01:23]} O-O {[%clk 00:41:05]} {[%emt 00:02:25]} 9. Ne5
{[%clk 00:37:39]} {[%emt 00:04:05]} Nbd7 {[%clk 00:37:28]} {[%emt 00:03:47]} 10.
Nd3 {[%clk 00:36:33]} {[%emt 00:01:16]} Be7 {[%clk 00:30:28]} {[%emt 00:07:10]}
11. Re1 {[%clk 00:31:07]} {[%emt 00:05:36]} Bg6 {[%clk 00:27:38]} {[%emt
00:03:00]} 12. Nf4 {[%clk 00:29:15]} {[%emt 00:02:02]} c5 {[%clk 00:22:01]}
{[%emt 00:05:47]} 13. Nxg6 {[%clk 00:27:57]} {[%emt 00:01:28]} hxg6 {[%clk
00:22:05]} {[%emt 00:00:06]} 14. a5 {[%clk 00:25:47]} {[%emt 00:02:20]} a6
{[%clk 04:06:46]} {[%emt 00:02:47]} 15. Qb3 {[%clk 00:23:46]} {[%emt 00:02:11]}
Qc7 {[%clk 00:14:43]} {[%emt 00:04:55]} 16. d5 {[%clk 00:21:31]} {[%emt
00:02:25]} exd5 {[%clk 00:14:48]} {[%emt 00:00:05]} 17. Nxd5 {[%clk 00:21:39]}
{[%emt 00:00:02]} Nxd5 {[%clk 00:14:44]} {[%emt 00:00:13]} 18. Bxd5 {[%clk
00:21:45]} {[%emt 00:00:03]} Rab8 {[%clk 00:14:42]} {[%emt 00:00:14]} 19. e4
{[%clk 00:20:58]} {[%emt 00:00:57]} Nf6 {[%clk 00:10:02]} {[%emt 00:04:50]} 20.
Bc4 {[%clk 00:20:38]} {[%emt 00:00:30]} Bd6 {[%clk 00:08:33]} {[%emt 00:01:38]}
21. h3 {[%clk 00:19:02]} {[%emt 00:01:46]} Rfe8 {[%clk 00:07:14]} {[%emt
00:01:31]} 22. f3 {[%clk 00:17:51]} {[%emt 00:01:20]} Be5 {[%clk 00:06:45]}
{[%emt 00:00:39]} 23. Be3 {[%clk 00:17:28]} {[%emt 00:00:32]} b5 {[%clk
00:06:36]} {[%emt 00:00:20]} 24. axb6 {[%clk 00:16:13]} {[%emt 00:01:25]} Rxb6
{[%clk 00:06:45]} {[%emt 00:00:01]} 25. Qa4 {[%clk 00:10:19]} {[%emt 00:06:04]}
Rxb2 {[%clk 00:05:59]} {[%emt 00:00:56]} 26. Qa5 {[%clk 00:09:56]} {[%emt
00:00:33]} Qxa5 {[%clk 00:04:41]} {[%emt 00:01:28]} 27. Rxa5 {[%clk 00:10:05]}
Bc3 {[%clk 00:04:51]} {[%emt 00:00:01]} 28. Rea1 {[%clk 00:09:39]} {[%emt
00:00:36]} Bxa5 {[%clk 00:02:12]} {[%emt 00:02:48]} 29. Rxa5 {[%clk 00:09:48]}
{[%emt 00:00:01]} Nd7 {[%clk 00:01:05]} {[%emt 00:01:18]} 30. Rxa6 {[%clk
00:09:28]} {[%emt 00:00:30]} Ne5 {[%clk 00:00:59]} {[%emt 00:00:16]} 31. Bd5
{[%clk 00:09:18]} {[%emt 00:00:19]} Rc8 {[%clk 00:00:21]} {[%emt 00:00:49]} 32.
f4 {[%clk 00:07:40]} {[%emt 00:01:48]} Nd3 {[%clk 00:00:30]} 33. Bc4 {[%clk
00:07:47]} {[%emt 00:00:02]} Nb4 {[%clk 00:00:27]} {[%emt 00:00:13]} 34. Ra7
{[%clk 00:07:56]} {[%emt 00:00:02]} Re2 {[%clk 00:00:16]} {[%emt 00:00:21]} 35.
Bxe2 {[%clk 00:08:04]} {[%emt 00:00:03]} c4 {[%clk 00:00:23]} {[%emt 00:00:02]}
36. Ra4 {[%clk 00:07:41]} {[%emt 00:00:31]} Nc2 {[%clk 00:00:25]} {[%emt
00:00:10]} 37. Bf2 {[%clk 00:07:40]} {[%emt 00:00:10]} c3 {[%clk 00:00:32]}
{[%emt 00:00:04]} 38. Bd3 {[%clk 00:07:44]} {[%emt 00:00:07]} Ne3 {[%clk
00:00:18]} {[%emt 00:00:23]} 39. Bxe3 {[%emt 00:00:03]} 1-0

[Event "Skol-SM i Schack 2024, Grupp A"]
[Site "Arena Varberg, Kattegattsvagen 26, Varberg, Sweden"]
[Date "2024.10.12"]
[Round "4.12"]
[White "Johansson, Sigge"]
[Black "Al-Sherufi, Haider"]
[Result "0-1"]
[TimeControl "45 minutes + 10 seconds per move from move one."]
[WhiteFideId "1742612"]
[BlackFideId "1745212"]
[WhiteElo "1746"]
[BlackElo "1599"]

1. e4 {[%clk 00:45:06]} {[%emt 00:00:13]} e6 {[%clk 00:45:11]} {[%emt
00:00:09]} 2. d4 {[%clk 00:45:11]} {[%emt 00:00:05]} d5 {[%clk 00:45:20]}
{[%emt 00:00:02]} 3. e5 {[%clk 00:45:17]} {[%emt 00:00:04]} c5 {[%clk
00:45:28]} {[%emt 00:00:02]} 4. c3 {[%clk 00:45:19]} {[%emt 00:00:08]} Nc6
{[%clk 00:45:35]} {[%emt 00:00:03]} 5. g3 {[%clk 00:43:57]} {[%emt 00:01:32]}
Qb6 {[%clk 00:45:25]} {[%emt 00:00:20]} 6. Ne2 {[%clk 00:43:54]} {[%emt
00:00:13]} Nh6 {[%clk 00:44:27]} {[%emt 00:01:07]} 7. Bh3 {[%clk 00:43:57]}
{[%emt 00:00:08]} Nf5 {[%clk 00:41:23]} {[%emt 00:03:14]} 8. Bxf5 {[%clk
00:43:59]} {[%emt 00:00:08]} exf5 {[%clk 00:41:31]} {[%emt 00:00:02]} 9. f4
{[%clk 00:43:36]} {[%emt 00:00:33]} cxd4 {[%clk 00:41:14]} {[%emt 00:00:27]} 10.
cxd4 {[%clk 00:42:59]} {[%emt 00:00:47]} Be7 {[%clk 00:40:19]} {[%emt
00:01:05]} 11. Nbc3 {[%clk 00:42:52]} {[%emt 00:00:17]} Be6 {[%clk 00:40:18]}
{[%emt 00:00:11]} 12. O-O {[%clk 00:42:32]} {[%emt 00:00:29]} f6 {[%clk
00:40:21]} {[%emt 00:00:08]} 13. Kg2 {[%clk 00:41:14]} {[%emt 00:01:28]} O-O-O
{[%clk 00:38:55]} {[%emt 00:01:35]} 14. Qb3 {[%clk 00:38:06]} {[%emt 00:03:16]}
Qxb3 {[%clk 00:35:05]} {[%emt 00:04:03]} 15. axb3 {[%clk 00:37:48]} {[%emt
00:00:28]} h6 {[%clk 00:34:55]} {[%emt 00:00:20]} 16. Be3 {[%clk 00:34:05]}
{[%emt 00:03:53]} g5 {[%clk 00:34:49]} {[%emt 00:00:16]} 17. Kf3 {[%clk
00:33:26]} {[%emt 00:00:48]} fxe5 {[%clk 00:34:12]} {[%emt 00:00:48]} 18. fxe5
{[%clk 00:33:01]} {[%emt 00:00:36]} h5 {[%clk 00:33:14]} {[%emt 00:01:07]} 19.
Kg2 {[%clk 00:30:58]} {[%emt 00:02:12]} h4 {[%clk 00:32:26]} {[%emt 00:00:59]}
20. Rac1 {[%clk 00:29:03]} {[%emt 00:02:06]} hxg3 {[%clk 00:31:47]} {[%emt
00:00:48]} 21. hxg3 {[%clk 00:29:07]} {[%emt 00:00:06]} f4 {[%clk 00:31:52]}
{[%emt 00:00:06]} 22. gxf4 {[%clk 00:28:00]} {[%emt 00:01:16]} Bh3+ {[%clk
00:31:56]} {[%emt 00:00:06]} 23. Kf2 {[%clk 00:27:54]} {[%emt 00:00:16]} Bxf1
{[%clk 00:31:55]} {[%emt 00:00:11]} 24. Rxf1 {[%clk 00:28:01]} {[%emt
00:00:03]} gxf4 {[%clk 00:32:03]} {[%emt 00:00:02]} 25. Nxf4 {[%clk 00:28:05]}
{[%emt 00:00:06]} Rh2+ {[%clk 00:31:17]} {[%emt 00:00:56]} 26. Ke1 {[%clk
00:28:13]} {[%emt 00:00:02]} Rxb2 {[%clk 00:30:58]} {[%emt 00:00:27]} 27. Nfxd5
{[%clk 00:27:48]} {[%emt 00:00:37]} Rxb3 {[%clk 00:30:54]} {[%emt 00:00:14]} 28.
Nxe7+ {[%clk 00:27:41]} {[%emt 00:00:17]} Nxe7 {[%clk 00:31:01]} {[%emt
00:00:03]} 29. Kd2 {[%clk 00:27:25]} {[%emt 00:00:26]} Nc6 {[%clk 00:31:02]}
{[%emt 00:00:08]} 30. Kc2 {[%clk 00:26:08]} {[%emt 00:01:28]} Rb4 {[%clk
00:30:32]} {[%emt 00:00:34]} 31. Ne2 {[%clk 00:25:06]} {[%emt 00:01:18]} a5
{[%clk 00:29:42]} {[%emt 00:01:00]} 32. e6 {[%clk 00:23:55]} {[%emt 00:01:20]}
a4 {[%clk 00:29:30]} {[%emt 00:00:23]} 33. Rd1 {[%clk 00:23:24]} {[%emt
00:00:40]} a3 {[%clk 00:29:16]} {[%emt 00:00:25]} 34. d5 {[%clk 00:22:22]}
{[%emt 00:01:12]} Rb2+ {[%clk 00:29:15]} {[%emt 00:00:11]} 35. Kc1 {[%clk
00:22:25]} {[%emt 00:00:07]} Rxe2 {[%clk 00:29:02]} {[%emt 00:00:23]} 36. Bg5
{[%clk 00:21:17]} {[%emt 00:01:18]} a2 {[%clk 00:28:42]} {[%emt 00:00:30]} 37.
Bf6 {[%clk 00:21:25]} {[%emt 00:00:02]} Ne5 {[%clk 00:28:50]} {[%emt 00:00:01]}
38. Bxe5 {[%clk 00:20:55]} {[%emt 00:00:40]} Rxe5 {[%clk 00:28:40]} {[%emt
00:00:21]} 39. Kb2 {[%clk 00:20:43]} {[%emt 00:00:23]} Rdxd5 {[%clk 00:27:55]}
{[%emt 00:00:54]} 0-1

[Event "Skol-SM i Schack 2024, Grupp A"]
[Site "Arena Varberg, Kattegattsvagen 26, Varberg, Sweden"]
[Date "2024.10.12"]
[Round "6.4"]
[White "Wedenberg, Oliver"]
[Black "Emanuelsson, Aron"]
[Result "1-0"]
[TimeControl "45 minutes + 10 seconds per move from move one."]
[WhiteFideId "1767909"]
[BlackFideId "1780069"]
[WhiteElo "1858"]
[BlackElo "1720"]

1. e4 {[%clk 00:45:18]} {[%emt 00:00:02]} c6 {[%clk 00:45:19]} {[%emt
00:00:02]} 2. d4 {[%clk 00:45:11]} {[%emt 00:01:04]} d5 {[%clk 00:45:28]}
{[%emt 00:00:02]} 3. e5 {[%clk 00:44:59]} {[%emt 00:00:21]} Bf5 {[%clk
00:45:12]} {[%emt 00:00:25]} 4. h4 {[%clk 00:44:13]} {[%emt 00:00:57]} h5
{[%clk 00:45:21]} {[%emt 00:00:01]} 5. Bg5 {[%clk 00:40:24]} {[%emt 00:03:59]}
Qa5+ {[%clk 00:45:00]} {[%emt 00:00:32]} 6. Nc3 {[%clk 00:37:02]} {[%emt
00:03:31]} e6 {[%clk 00:44:52]} {[%emt 00:00:19]} 7. Bd3 {[%clk 00:35:53]}
{[%emt 00:01:18]} Bxd3 {[%clk 00:44:30]} {[%emt 00:00:32]} 8. Qxd3 {[%clk
00:35:55]} {[%emt 00:00:08]} Bb4 {[%clk 00:42:43]} {[%emt 00:01:57]} 9. Nge2
{[%clk 00:34:10]} {[%emt 00:01:55]} c5 {[%clk 00:41:53]} {[%emt 00:01:00]} 10.
dxc5 {[%clk 00:27:24]} {[%emt 00:06:57]} Qxc5 {[%clk 00:41:35]} {[%emt
00:00:27]} 11. O-O {[%clk 00:27:14]} {[%emt 00:00:20]} Bxc3 {[%clk 00:41:06]}
{[%emt 00:00:40]} 12. Nxc3 {[%clk 00:25:22]} {[%emt 00:02:01]} a6 {[%clk
00:40:56]} {[%emt 00:00:20]} 13. Ne4 {[%clk 00:23:20]} {[%emt 00:02:12]} Qc7
{[%clk 00:39:21]} {[%emt 00:01:45]} 14. Nd6+ {[%clk 00:23:20]} {[%emt
00:00:10]} Kf8 {[%clk 00:39:18]} {[%emt 00:00:13]} 15. Bd2 {[%clk 00:20:24]}
{[%emt 00:03:05]} Nc6 {[%clk 00:39:01]} {[%emt 00:00:28]} 16. f4 {[%clk
00:19:44]} {[%emt 00:00:50]} Nge7 {[%clk 00:38:34]} {[%emt 00:00:37]} 17. c4
{[%clk 00:18:37]} {[%emt 00:01:18]} g6 {[%clk 00:36:23]} {[%emt 00:02:20]} 18.
c5 {[%clk 00:18:02]} {[%emt 00:00:45]} Nf5 {[%clk 00:34:34]} {[%emt 00:01:59]}
19. g3 {[%clk 00:17:26]} {[%emt 00:00:45]} Kg7 {[%clk 00:34:15]} {[%emt
00:00:30]} 20. b4 {[%clk 00:17:10]} {[%emt 00:00:26]} b6 {[%clk 00:32:42]}
{[%emt 00:01:43]} 21. Rfc1 {[%clk 00:17:11]} {[%emt 00:00:09]} bxc5 {[%clk
00:32:13]} {[%emt 00:00:39]} 22. bxc5 {[%clk 00:15:04]} {[%emt 00:02:17]} Rhb8
{[%clk 00:31:47]} {[%emt 00:00:37]} 23. Rab1 {[%clk 00:14:09]} {[%emt
00:01:04]} Rxb1 {[%clk 00:29:21]} {[%emt 00:02:36]} 24. Rxb1 {[%clk 00:13:53]}
{[%emt 00:00:26]} Rb8 {[%clk 00:29:30]} {[%emt 00:00:01]} 25. Rxb8 {[%clk
00:10:50]} {[%emt 00:03:13]} Nxb8 {[%clk 00:22:58]} {[%emt 00:06:42]} 26. Ne8+
{[%clk 00:10:54]} {[%emt 00:00:06]} 1-0

[Event "Skol-SM i Schack 2024, Grupp A"]
[Site "Arena Varberg, Kattegattsvagen 26, Varberg, Sweden"]
[Date "2024.10.12"]
[Round "3.9"]
[White "Walter, Fridolf"]
[Black "Johansson, Sigge"]
[Result "1-0"]
[TimeControl "45 minutes + 10 seconds per move from move one."]
[WhiteFideId "1753347"]
[BlackFideId "1742612"]
[WhiteElo "1708"]
[BlackElo "1746"]

1. e4 {[%clk 00:45:14]} {[%emt 00:00:04]} c5 {[%clk 00:42:54]} {[%emt
00:02:28]} 2. Nf3 {[%clk 00:45:18]} {[%emt 00:00:06]} g6 {[%clk 00:42:55]}
{[%emt 00:00:09]} 3. d4 {[%clk 00:44:04]} {[%emt 00:01:24]} cxd4 {[%clk
00:43:01]} {[%emt 00:00:04]} 4. Nxd4 {[%clk 00:43:55]} {[%emt 00:00:18]} Bg7
{[%clk 00:43:07]} {[%emt 00:00:05]} 5. Nc3 {[%clk 00:42:36]} {[%emt 00:01:29]}
Nc6 {[%clk 00:43:07]} {[%emt 00:00:09]} 6. Be3 {[%clk 00:42:07]} {[%emt
00:00:40]} Nf6 {[%clk 00:42:20]} {[%emt 00:00:57]} 7. Bc4 {[%clk 00:37:14]}
{[%emt 00:05:03]} O-O {[%clk 00:39:55]} {[%emt 00:02:35]} 8. Bb3 {[%clk
00:35:38]} {[%emt 00:01:46]} a6 {[%clk 00:39:09]} {[%emt 00:00:55]} 9. f3
{[%clk 00:32:34]} {[%emt 00:03:14]} Na5 {[%clk 00:38:11]} {[%emt 00:01:09]} 10.
Qd2 {[%clk 00:31:56]} {[%emt 00:00:47]} Nxb3 {[%clk 00:38:03]} {[%emt
00:00:20]} 11. Nxb3 {[%clk 00:31:43]} {[%emt 00:00:22]} d6 {[%clk 00:36:47]}
{[%emt 00:01:26]} 12. Bh6 {[%clk 00:30:11]} {[%emt 00:01:41]} Be6 {[%clk
00:35:20]} {[%emt 00:01:38]} 13. Bxg7 {[%clk 00:24:28]} {[%emt 00:05:52]} Kxg7
{[%clk 00:35:25]} {[%emt 00:00:06]} 14. O-O-O {[%clk 00:24:03]} {[%emt
00:00:35]} b5 {[%clk 00:34:32]} {[%emt 00:01:03]} 15. Kb1 {[%clk 00:22:47]}
{[%emt 00:01:26]} Qb6 {[%clk 00:32:54]} {[%emt 00:01:48]} 16. g4 {[%clk
00:21:06]} {[%emt 00:01:50]} b4 {[%clk 00:32:05]} {[%emt 00:01:00]} 17. Nd5
{[%clk 00:17:01]} {[%emt 00:04:14]} Bxd5 {[%clk 00:31:59]} {[%emt 00:00:17]} 18.
exd5 {[%clk 00:16:52]} {[%emt 00:00:18]} a5 {[%clk 00:31:45]} {[%emt 00:00:24]}
19. h4 {[%clk 00:13:16]} {[%emt 00:03:46]} h5 {[%clk 00:27:35]} {[%emt
00:04:19]} 20. Qg5 {[%clk 00:10:41]} {[%emt 00:02:45]} Kh7 {[%clk 00:22:01]}
{[%emt 00:05:44]} 21. Nd4 {[%clk 00:09:45]} {[%emt 00:01:08]} a4 {[%clk
00:19:40]} {[%emt 00:02:30]} 22. gxh5 {[%clk 00:07:26]} {[%emt 00:02:29]} Nxh5
{[%clk 00:19:32]} {[%emt 00:00:19]} 23. Nf5 {[%clk 00:07:07]} {[%emt 00:00:28]}
Rh8 {[%clk 00:16:56]} {[%emt 00:02:46]} 24. Qh6+ {[%clk 00:06:56]} {[%emt
00:00:21]} Kg8 {[%clk 00:16:56]} {[%emt 00:00:09]} 25. Nxe7# {[%clk 00:06:58]}
{[%emt 00:00:09]} 1-0

[Event "Skol-SM i Schack 2024, Grupp A"]
[Site "Arena Varberg, Kattegattsvagen 26, Varberg, Sweden"]
[Date "2024.10.12"]
[Round "5.1"]
[White "Joensson, Oscar"]
[Black "Harlin, Jacob"]
[Result "1-0"]
[TimeControl "45 minutes + 10 seconds per move from move one."]
[WhiteFideId "1729977"]
[BlackFideId "1728180"]
[WhiteElo "1955"]
[BlackElo "1919"]

1. d4 {[%clk 00:45:18]} d5 {[%clk 00:45:15]} {[%emt 00:00:06]} 2. c4 {[%clk
00:45:27]} {[%emt 00:00:02]} c6 {[%clk 00:45:21]} {[%emt 00:00:03]} 3. Nf3
{[%clk 00:45:34]} {[%emt 00:00:02]} Nf6 {[%clk 00:45:29]} {[%emt 00:00:02]} 4.
g3 {[%clk 00:45:40]} {[%emt 00:00:05]} dxc4 {[%clk 00:41:01]} {[%emt 00:04:38]}
5. Bg2 {[%clk 00:45:48]} {[%emt 00:00:02]} b5 {[%clk 00:37:23]} {[%emt
00:03:49]} 6. a4 {[%clk 00:43:49]} {[%emt 00:02:09]} Bb7 {[%clk 00:33:09]}
{[%emt 00:04:24]} 7. O-O {[%clk 00:39:03]} {[%emt 00:04:55]} a6 {[%clk
00:24:12]} {[%emt 00:09:08]} 8. b3 {[%clk 00:33:42]} {[%emt 00:05:30]} cxb3
{[%clk 00:19:06]} {[%emt 00:05:17]} 9. Qxb3 {[%clk 00:33:48]} {[%emt 00:00:03]}
e6 {[%clk 00:18:55]} {[%emt 00:00:21]} 10. Bd2 {[%clk 00:22:56]} {[%emt
00:11:01]} Be7 {[%clk 00:14:13]} {[%emt 00:04:53]} 11. Rc1 {[%clk 00:21:36]}
{[%emt 00:01:29]} Nbd7 {[%clk 00:10:59]} {[%emt 00:03:25]} 12. Be1 {[%clk
00:15:51]} {[%emt 00:05:55]} c5 {[%clk 00:06:18]} {[%emt 00:04:51]} 13. axb5
{[%clk 00:14:34]} {[%emt 00:01:27]} Bd5 {[%clk 00:06:20]} {[%emt 00:00:08]} 14.
Qb2 {[%clk 00:13:14]} {[%emt 00:01:30]} axb5 {[%clk 00:06:11]} {[%emt
00:00:19]} 15. Rxa8 {[%clk 00:13:06]} {[%emt 00:00:17]} Qxa8 {[%clk 00:06:14]}
{[%emt 00:00:08]} 16. dxc5 {[%clk 00:11:59]} {[%emt 00:01:18]} Bxc5 {[%clk
00:04:24]} {[%emt 00:01:59]} 17. Qxb5 {[%clk 00:11:25]} {[%emt 00:00:44]} O-O
{[%clk 00:03:02]} {[%emt 00:01:32]} 18. Nc3 {[%clk 00:06:20]} {[%emt 00:05:15]}
Qa3 {[%clk 00:03:04]} {[%emt 00:00:08]} 19. Rd1 {[%clk 00:05:43]} {[%emt
00:00:46]} Rb8 {[%clk 00:03:05]} {[%emt 00:00:10]} 20. Qd3 {[%clk 00:05:21]}
{[%emt 00:00:32]} Rb3 {[%clk 00:03:08]} {[%emt 00:00:08]} 21. Rb1 {[%clk
00:02:53]} {[%emt 00:02:37]} Be4 {[%clk 00:02:10]} {[%emt 00:01:08]} 22. Rxb3
{[%clk 00:03:01]} {[%emt 00:00:02]} Qxb3 {[%clk 00:00:28]} {[%emt 00:01:53]} 23.
Nxe4 {[%clk 00:03:04]} {[%emt 00:00:06]} Qxd3 {[%clk 00:00:15]} {[%emt
00:00:23]} 24. Nxf6+ {[%clk 00:03:12]} {[%emt 00:00:02]} Nxf6 {[%clk 00:00:20]}
{[%emt 00:00:06]} 25. exd3 {[%clk 00:03:21]} {[%emt 00:00:01]} Nd5 {[%clk
00:00:15]} {[%emt 00:00:15]} 26. d4 {[%clk 00:03:24]} {[%emt 00:00:07]} Ba3
{[%clk 00:00:22]} {[%emt 00:00:03]} 27. Bd2 {[%clk 00:03:30]} {[%emt 00:00:04]}
Bb2 {[%clk 00:00:26]} {[%emt 00:00:05]} 28. Kf1 {[%clk 00:03:29]} {[%emt
00:00:11]} Kf8 {[%clk 00:00:26]} {[%emt 00:00:10]} 29. Ke2 {[%clk 00:03:37]}
{[%emt 00:00:01]} Ke7 {[%clk 00:00:32]} {[%emt 00:00:05]} 30. Kd3 {[%clk
00:03:35]} {[%emt 00:00:12]} Kd6 {[%clk 00:00:32]} {[%emt 00:00:10]} 31. Ne5
{[%clk 00:03:35]} {[%emt 00:00:09]} Ba1 {[%clk 00:00:14]} {[%emt 00:00:29]} 32.
Nxf7+ {[%clk 00:03:34]} {[%emt 00:00:11]} Nf6 {[%clk 00:00:13]} {[%emt
00:00:10]} 1-0

[Event "Skol-SM i Schack 2024, Grupp A"]
[Site "Arena Varberg, Kattegattsvagen 26, Varberg, Sweden"]
[Date "2024.10.12"]
[Round "6.5"]
[White "Eriksson, Wilmer"]
[Black "Persson Holm, Simon"]
[Result "1-0"]
[TimeControl "45 minutes + 10 seconds per move from move one."]
[WhiteFideId "1768298"]
[BlackFideId "1744380"]
[WhiteElo "1849"]
[BlackElo "1737"]

1. e4 {[%clk 00:45:15]} c6 {[%clk 00:45:19]} {[%emt 00:00:02]} 2. d4 {[%clk
00:45:19]} {[%emt 00:00:05]} d5 {[%clk 00:45:24]} {[%emt 00:00:05]} 3. e5
{[%clk 00:45:23]} {[%emt 00:00:06]} c5 {[%clk 00:45:27]} {[%emt 00:00:07]} 4.
dxc5 {[%clk 00:45:30]} {[%emt 00:00:03]} e6 {[%clk 00:45:26]} {[%emt 00:00:12]}
5. Qg4 {[%clk 00:45:32]} {[%emt 00:00:07]} h5 {[%clk 00:44:37]} {[%emt
00:01:00]} 6. Qf4 {[%clk 00:44:55]} {[%emt 00:00:47]} Bxc5 {[%clk 00:43:40]}
{[%emt 00:01:07]} 7. Nf3 {[%clk 00:43:43]} {[%emt 00:01:21]} Nc6 {[%clk
00:42:12]} {[%emt 00:01:38]} 8. Bd3 {[%clk 00:43:35]} {[%emt 00:00:18]} Qb6
{[%clk 00:40:37]} {[%emt 00:01:46]} 9. O-O {[%clk 00:43:27]} {[%emt 00:00:18]}
Nh6 {[%clk 00:39:22]} {[%emt 00:01:25]} 10. Nbd2 {[%clk 00:42:53]} {[%emt
00:00:44]} Ng4 {[%clk 00:38:21]} {[%emt 00:01:11]} 11. Qg3 {[%clk 00:20:36]}
{[%emt 00:22:26]} Nxf2 {[%clk 00:27:44]} {[%emt 00:10:48]} 12. Rxf2 {[%clk
00:20:22]} {[%emt 00:00:24]} h4 {[%clk 00:27:21]} {[%emt 00:00:33]} 13. Qxg7
{[%clk 00:20:23]} {[%emt 00:00:09]} Bxf2+ {[%clk 00:27:01]} {[%emt 00:00:30]}
14. Kh1 {[%clk 00:20:19]} {[%emt 00:00:15]} Rf8 {[%clk 00:17:39]} {[%emt
00:09:31]} 15. Ng5 {[%clk 00:15:50]} {[%emt 00:04:39]} f5 {[%clk 00:16:30]}
{[%emt 00:01:18]} 16. exf6 {[%clk 00:14:10]} {[%emt 00:01:51]} Ne5 {[%clk
00:12:39]} {[%emt 00:04:01]} 17. Qe7# {[%clk 00:13:56]} {[%emt 00:00:23]} 1-0